[Event "Fagernes GM Open Autumn 2024"]
[Site "Fagernes"]
[Date "2024.10.13"]
[Round "9.3"]
[White "Ghasi, Ameet K"]
[Black "Urkedal, Frode Olav Olsen"]
[Result "1-0"]
[ECO "A09"]
[WhiteElo "2503"]
[BlackElo "2559"]
[Annotator "TA"]
[PlyCount "69"]
[EventDate "2024.10.03"]
[EventType "swiss"]
[EventCountry "NOR"]
[SourceTitle "playchess.com"]
[Source "ChessBase"]
[SourceQuality "1"]
[TimeControl "40/6000:2400+30"]

{[%evp 15,68,-9,20,17,23,33,18,21,21,0,0,-1,0,0,0,0,0,0,0,-17,0,4,37,5,46,52,216,210,275,325,302,149,196,204,214,182,293,198,543,521,1154,1083,1018,541,510,310,29978,29979,1937,1021,982,954,29998,29999,29999]} 1. Nf3 {[%emt 0:01:45]} d5 {[%emt 0:00:42]} 2. c4 {[%emt 0:00:07]} d4 {[%emt 0:00:00]} 3. b4 {[%emt 0:00:29]} c5 {[%emt 0:00:00]} 4. b5 {[%emt 0:00:55]} Nf6 {[%emt 0:01:09]} 5. g3 {[%emt 0:08:05]} g6 {[%emt 0:03:46]} 6. Bg2 {[%emt 0:01:24] A09: Réti Opening: 1 Nf3 d5 2 c4.} Bg7 {[%emt 0:00:00]} 7. O-O {[%emt 0:00:31]} O-O {[%emt 0:00:00]} 8. d3 {[%emt 0:08:35]} a5 $146 {[%emt 0:04:03]} ({Predecessor:} 8... a6 9. a4 b6 10. Ne5 Ra7 11. Na3 Ne8 12. Nc6 Nxc6 13. bxc6 Nd6 14. Rb1 Bf5 {0-1 Pantsulaia,L (2564)-Sevian,S (2690) Aimchess Play In m rapid 2023 (1.1)}) 9. a4 {[%emt 0:05:28]} Nbd7 {[%emt 0:01:23]} 10. Ra2 {[%emt 0:02:11]} Ra7 {[%emt 0:07:51]} 11. e3 {[%emt 0:05:41]} dxe3 {[%emt 0:04:43]} 12. fxe3 {[%emt 0:02:00]} b6 {[%emt 0:03:13]} 13. d4 {[%emt 0:16:37]} Ne4 {[%emt 0:05:09]} 14. Qd3 {[%emt 0:08:16]} Nd6 {[%emt 0:04:12]} 15. d5 {[%emt 0:02:25]} Ne5 {[%emt 0:00:01]} 16. Nxe5 {[%emt 0:00:27]} Bxe5 {[%emt 0:00:00]} 17. Nc3 {[%emt 0:11:44]} f6 {[%emt 0:06:42]} 18. Ne2 {[%emt 0:03:09]} Nf7 {[%emt 0:00:04]} 19. Rd2 {[%emt 0:03:54]} Bd6 {[%emt 0:00:25]} 20. Nf4 {[%emt 0:00:15]} g5 $2 {[%emt 0:01:01]} (20... Kg7 $14) 21. Ne6 $18 {[%emt 0:00:10]} Bxe6 {[%emt 0:00:00]} 22. dxe6 {[%emt 0:00:00]} Ne5 {[%emt 0:00:10] [#]} 23. Qc2 {[%emt 0:02:16]} (23. Qe2 $1 $18 {and the rest is easy.}) 23... Kg7 {[%emt 0:02:57]} (23... Qe8 $16 {is a better defense.} 24. Bb2 Rc7 25. Bxe5 Bxe5) 24. Be4 $18 {[%emt 0:01:29]} Qc8 {[%emt 0:00:58] [#]} 25. Bf5 $1 {[%emt 0:00:00]} (25. Bxh7 Qxe6 26. Rd5 Qh3 $16) 25... Rd8 {[%emt 0:15:29]} (25... Rh8 $142 26. Qe4 h5) 26. Rd5 {[%emt 0:01:16]} (26. Bxh7 Qxe6 27. Bb2 Rh8 28. Bxe5 Rxh7 29. Rxd6 Qxe5 30. Rxb6 Rd7 $18) 26... Ra8 $2 {[%emt 0:06:25]} (26... Bc7 27. h4 (27. Bxh7 Qxe6 28. Rxd8 Bxd8 $16) 27... g4) 27. Bb2 $18 {[%emt 0:02:51]} ({Weaker is} 27. Bxh7 Qxe6 28. Bb2 Qh3 29. Bxe5 Qxh7 30. Qxh7+ Kxh7 31. Bxd6 Rxd6 32. Rxd6 exd6 $18) 27... Bc7 {[%emt 0:05:29]} 28. Rxe5 {[%emt 0:03:00]} Bxe5 {[%emt 0:00:00]} 29. Bxe5 {[%emt 0:00:00]} fxe5 {[%emt 0:00:00]} 30. Qe2 {[%emt 0:00:17]} (30. Bxh7 Qxe6 31. Be4 Rab8 $16) (30. Qe4 Rf8 $16) 30... Rd6 $2 {[%emt 0:04:05]} (30... Rf8 $18 31. Qh5 Rxf5 32. Rxf5 Qxe6 33. Qxg5+ (33. Rxg5+ Kh8 $18) 33... Kh8 34. Rxe5 Qd6 35. Rxe7 (35. Qxe7 Qxe7 36. Rxe7 Rd8 $18) 35... Rg8 36. Qe5+ Qxe5 37. Rxe5 Rd8) 31. Qh5 {[%emt 0:01:52]} Qg8 {[%emt 0:00:00]} 32. Be4 {[%emt 0:00:16]} Rxe6 {[%emt 0:06:21]} 33. Bxa8 {[%emt 0:00:00]} ({Not} 33. Qxg5+ Kh8 34. Qh4 Rd8 $18) 33... Qxa8 {[%emt 0:00:00]} 34. Rf7+ {[%emt 0:00:00]} Kg8 {[%emt 0:00:00]} 35. Qxh7# {[%emt 0:00:04]} 1-0

[Event "Fagernes GM Open Autumn 2024"]
[Site "Fagernes"]
[Date "2024.10.13"]
[Round "9.4"]
[White "Amar, Elham"]
[Black "Stremavicius, Titas"]
[Result "1-0"]
[ECO "B30"]
[WhiteElo "2540"]
[BlackElo "2541"]
[Annotator "TA"]
[PlyCount "59"]
[EventDate "2024.10.03"]
[EventType "swiss"]
[EventCountry "NOR"]
[SourceTitle "playchess.com"]
[Source "ChessBase"]
[SourceQuality "1"]
[TimeControl "40/6000:2400+30"]

{[%evp 9,59,27,38,37,36,30,29,-2,0,-17,-31,-32,0,-12,0,0,-23,-34,74,74,87,89,121,66,72,78,86,85,89,54,149,145,232,192,270,310,286,316,421,433,454,418,430,443,516,356,449,545,546,544,438,422]} 1. e4 {[%emt 0:00:00]} c5 {[%emt 0:00:00]} 2. Nf3 {[%emt 0:00:00]} Nc6 {[%emt 0:00:00]} 3. Bb5 {[%emt 0:00:00]} Nf6 {[%emt 0:00:00]} 4. Bxc6 {[%emt 0:00:00]} dxc6 {[%emt 0:00:00]} 5. d3 {[%emt 0:00:00]} Bg4 {[%emt 0:00:00][%cal Oc5c4]} 6. h3 {[%emt 0:00:00]} Bh5 {[%emt 0:00:00]} 7. Qe2 {[%emt 0:00:00]} Nd7 {[%emt 0:03:38]} 8. Bf4 {[%emt 0:00:00] [#] White has an edge.} e5 $1 {[%emt 0:03:00]} 9. g4 {[%emt 0:07:54]} (9. Be3 f6) 9... exf4 {[%emt 0:03:12]} 10. gxh5 {[%emt 0:00:00]} Qf6 {[%emt 0:00:00]} 11. Nbd2 {[%emt 0:17:37]} Qxb2 {[%emt 0:04:07]} 12. Rb1 {[%emt 0:06:55][%cal Ba1b1,Bb1b7,Bb7c7,Bc7c6][%mdl 32]} Qxc2 {[%emt 0:00:00]} 13. Rxb7 {[%emt 0:06:34]} c4 {[%emt 0:08:05]} (13... Qxa2 $15 14. e5 Qa1+ 15. Rb1 Qa2) 14. Nxc4 $16 {[%emt 0:05:06]} Qc1+ {[%emt 0:02:28]} 15. Qd1 {[%emt 0:00:00]} Qxd1+ {[%emt 0:05:07]} 16. Kxd1 {[%emt 0:00:00] Threatens to win with Nfe5.} Nc5 {[%emt 0:00:00][%csl LRb7,LRd3]} 17. Rc7 {[%emt 0:01:06]} Nxd3 {[%emt 0:06:31]} 18. Ke2 {[%emt 0:01:44]} (18. Rxc6 $2 Nxf2+ 19. Ke2 Nxh1 $19) 18... Nc5 {[%emt 0:00:07]} 19. Rd1 {[%emt 0:12:29]} (19. Rxc6 Be7 $11 (19... Nxe4 20. Rg1 $11)) 19... Be7 {[%emt 0:16:04] [#]} (19... Na6 $14 20. Rxc6 Nc5) 20. Nd4 $1 $36 {[%emt 0:17:07][%mdl 2048] White is in control. White is much more active. The black rooks are passive. A dynamic duo of knights.} (20. Rxc6 Nxe4 21. Rd4 Nc5 $16) 20... Na6 {[%emt 0:03:31]} (20... Nxe4 $16 21. Nf5 (21. Nxc6 Bc5 $11) 21... Bb4) 21. Rxc6 $18 {[%emt 0:03:11] Black is weak on the light squares} Nb4 {[%emt 0:00:00]} (21... Nc5 $142) 22. Rc7 {[%emt 0:00:11] Nf5 is the strong threat.} Na6 {[%emt 0:00:00] [#]} 23. Nb5 {[%emt 0:04:37]} g6 {[%emt 0:11:48] [#]} (23... Kf8 24. Rxa7) 24. h6 $1 {[%emt 0:02:29]} Kf8 {[%emt 0:12:15]} 25. Rxa7 {[%emt 0:00:00]} Rxa7 {[%emt 0:00:00]} 26. Nxa7 {[%emt 0:00:00]} Bg5 {[%emt 0:00:00]} 27. Ne5 {[%emt 0:02:03] Hoping for Rd7.} Ke7 {[%emt 0:01:43]} 28. Nac6+ {[%emt 0:01:58] White is clearly winning.} Ke6 {[%emt 0:00:00]} 29. Nf3 {[%emt 0:03:45]} ({Weaker is} 29. Rd7 Nc5 30. Ra7 (30. Rxf7 Bf6 $15) (30. Nxf7 f3+ 31. Kxf3 Rf8 $11) 30... Bf6 $16) 29... Bxh6 {[%emt 0:02:56] [#]} 30. e5 $1 {[%emt 0:00:00] Weighted Error Value: White=0.12 (very precise) /Black=0.35.  Mistake:       	---       	Black=4      Inaccurate:     	White=4     	Black=2      OK:         	White=9     	Black=8      Best:        	White=4     	Black=3      Strong:       	White=2     	---} 1-0

[Event "Fagernes GM Open Autumn 2024"]
[Site "Fagernes"]
[Date "2024.10.13"]
[Round "9.5"]
[White "Raja Rithvik R"]
[Black "Moksh Amit Doshi"]
[Result "1/2-1/2"]
[ECO "C50"]
[WhiteElo "2514"]
[BlackElo "2377"]
[Annotator "TA"]
[PlyCount "29"]
[EventDate "2024.10.03"]
[EventType "swiss"]
[EventCountry "NOR"]
[SourceTitle "playchess.com"]
[Source "ChessBase"]
[SourceQuality "1"]
[TimeControl "40/6000:2400+30"]

{[%evp 12,29,10,5,7,12,16,23,21,5,15,23,20,21,27,29,14,0,37,-3]} 1. e4 {[%emt 0:03:49]} e5 {[%emt 0:01:47]} 2. Nf3 {[%emt 0:00:00]} Nc6 {[%emt 0:00:00]} 3. Bc4 {[%emt 0:00:00]} Bc5 {[%emt 0:00:00]} 4. d3 {[%emt 0:00:00]} Nf6 {[%emt 0:01:58]} 5. Nc3 {[%emt 0:00:00]} a6 {[%emt 0:06:13]} 6. a4 {[%emt 0:00:00]} h6 {[%emt 0:01:08]} 7. O-O {[%emt 0:00:00]} O-O {[%emt 0:01:31]} 8. Be3 {[%emt 0:00:00]} d6 {[%emt 0:02:19]} 9. Bxc5 {[%emt 0:00:00]} dxc5 {[%emt 0:00:00] White has an edge.} 10. Nd5 {[%emt 0:00:00]} Re8 {[%emt 0:05:40]} 11. a5 {[%emt 0:18:22]} Nxd5 {[%emt 0:06:09]} 12. Bxd5 {[%emt 0:00:15]} Ne7 {[%emt 0:00:37]} 13. Bc4 {[%emt 0:12:03]} (13. Nxe5 $2 {loses.} Nxd5 14. Qh5 Qf6 15. Nxf7 Qxf7 $19) 13... Ng6 {[%emt 0:02:17]} 14. Re1 {[%emt 0:06:03]} Qf6 {[%emt 0:04:24]} 15. Re3 {[%emt 0:12:04] An uneventful encounter.   Weighted Error Value: White=0.05 (flawless) /Black=0.06 (flawless) .  Inaccurate:     	White=1     	Black=1      OK:         	White=3     	Black=2} 1/2-1/2

[Event "Fagernes GM Open Autumn 2024"]
[Site "Fagernes"]
[Date "2024.10.13"]
[Round "9.6"]
[White "Bazakutsa, Svyatoslav"]
[Black "Sorensen, Hampus"]
[Result "1/2-1/2"]
[ECO "A20"]
[WhiteElo "2483"]
[BlackElo "2423"]
[Annotator "TA"]
[PlyCount "84"]
[EventDate "2024.10.03"]
[EventType "swiss"]
[EventCountry "NOR"]
[SourceTitle "playchess.com"]
[Source "ChessBase"]
[SourceQuality "1"]
[TimeControl "40/6000:2400+30"]

{[%evp 9,84,9,26,10,33,19,20,13,21,39,38,12,25,12,18,12,30,16,40,33,34,0,0,13,6,17,11,27,25,28,23,28,34,12,0,23,28,28,27,0,0,0,0,0,22,-23,-29,-114,-104,-150,-143,-145,-140,-142,-139,-137,-147,-186,-175,-146,-129,-113,-121,-129,-54,-54,-62,-58,-66,-64,-57,-56,-61,-60,0,-68,-34]} 1. c4 {[%emt 0:00:00]} e5 {[%emt 0:00:00]} 2. g3 {[%emt 0:00:00]} Nf6 {[%emt 0:00:00]} 3. Bg2 {[%emt 0:00:00]} c6 {[%emt 0:00:00]} 4. d4 {[%emt 0:00:00]} e4 {[%emt 0:00:00]} 5. Bg5 {[%emt 0:00:00]} d5 {[%emt 0:02:47]} 6. Nc3 {[%emt 0:00:00]} Nbd7 {[%emt 0:00:24]} 7. cxd5 {[%emt 0:03:21]} cxd5 {[%emt 0:00:00]} 8. Qb3 {[%emt 0:00:00][%cal Ob3b5] The position is equal.} Bd6 {[%emt 0:03:25]} 9. Qb5 {[%emt 0:00:35][%cal Og5f6]} O-O {[%emt 0:02:58]} 10. Nxd5 {[%emt 0:00:18]} a6 {[%emt 0:00:34]} 11. Qa4 {[%emt 0:00:00]} Re8 {[%emt 0:07:26]} 12. a3 {[%emt 0:01:07]} b5 {[%emt 0:08:10]} 13. Qc2 {[%emt 0:01:38]} Bb7 {[%emt 0:07:50] Inhibits Qc6.} 14. Nxf6+ {[%emt 0:24:30]} Nxf6 {[%emt 0:00:33]} 15. e3 {[%emt 0:00:34]} Qa5+ $1 {[%emt 0:11:02]} 16. Qd2 {[%emt 0:01:42]} Qxd2+ {[%emt 0:00:23]} 17. Kxd2 {[%emt 0:00:00]} Ng4 {[%emt 0:01:02]} 18. Ke1 {[%emt 0:06:33]} h6 {[%emt 0:07:12]} 19. Bf4 {[%emt 0:00:59]} Bf8 {[%emt 0:00:39]} 20. h3 {[%emt 0:14:07]} Nf6 {[%emt 0:00:00][%cal Bg4f6,Bf6d5,Bd5b6,Bb6c4][%mdl 32]} 21. g4 {[%emt 0:00:02]} Nd5 $36 {[%emt 0:06:25][%mdl 2048] Black fights for an advantage.} 22. Ne2 {[%emt 0:03:13]} Rac8 {[%emt 0:12:13]} 23. Kd2 {[%emt 0:04:27] Prevents Rc2+.} Nb6 {[%emt 0:00:00] [#] Strongly threatening ...Nc4+.} 24. Rhb1 {[%emt 0:07:59]} b4 {[%emt 0:08:36]} 25. axb4 {[%emt 0:08:27]} Bxb4+ {[%emt 0:00:00]} 26. Kd1 {[%emt 0:00:00]} Nc4 {[%emt 0:00:00]} 27. b3 {[%emt 0:03:45]} Na3 {[%emt 0:14:30][%mdl 1024] Black has compensation.} 28. Rb2 {[%emt 0:04:52]} (28. Rc1 $11) 28... Nb5 $17 {[%emt 0:00:00]} 29. Ra4 {[%emt 0:00:36]} ({White should try} 29. h4) 29... a5 {[%emt 0:00:00]} 30. Bf1 {[%emt 0:00:00]} Bd5 {[%emt 0:00:00]} 31. Rxb4 {[%emt 0:00:16]} axb4 {[%emt 0:00:00]} 32. Kd2 {[%emt 0:00:00]} Rc6 {[%emt 0:01:53]} 33. Ng3 {[%emt 0:00:16]} Nc3 {[%emt 0:00:00] And now ...g5 would win.} 34. Nf5 {[%emt 0:00:12]} Ree6 {[%emt 0:00:00] Prevents Bd6.} 35. Be5 {[%emt 0:04:37]} f6 {[%emt 0:00:00]} 36. Bb8 {[%emt 0:00:00] [#]} Kh7 {[%emt 0:01:11]} (36... g6 $1 $17 {[%cal Rg6f5]} 37. Nxh6+ Kh7) 37. Ba7 $1 $15 {[%emt 0:00:00]} g6 {[%emt 0:00:00]} 38. Ng3 {[%emt 0:00:00]} Re7 {[%emt 0:00:15]} 39. Bc5 {[%emt 0:00:00]} Rb7 {[%emt 0:00:00]} 40. Ke1 {[%emt 0:04:59]} Rb8 {[%emt 0:00:00]} 41. Kd2 {[%emt 0:08:28]} Kg7 {[%emt 0:01:00]} (41... f5 $15 42. gxf5 gxf5) 42. Bg2 {[%emt 0:12:41]} (42. Bc4 $1 $11) 42... Kf7 {[%emt 0:09:20] Whites escaped into a draw.   Weighted Error Value: White=0.12 (very precise) /Black=0.08 (flawless) .  Mistake:       	White=3     	Black=2      Inaccurate:     	White=2     	Black=1      OK:         	White=22    	Black=16     Best:        	White=1     	Black=5      Strong:       	White=1     	Black=1} 1/2-1/2

[Event "Fagernes GM Open Autumn 2024"]
[Site "Fagernes"]
[Date "2024.10.13"]
[Round "9.7"]
[White "Sasikiran, Krishnan"]
[Black "Namitbir Singh Walia"]
[Result "1/2-1/2"]
[ECO "D87"]
[WhiteElo "2571"]
[BlackElo "2351"]
[Annotator "TA"]
[PlyCount "119"]
[EventDate "2024.10.03"]
[EventType "swiss"]
[EventCountry "NOR"]
[SourceTitle "playchess.com"]
[Source "ChessBase"]
[SourceQuality "1"]
[TimeControl "40/6000:2400+30"]

{[%evp 19,119,10,35,0,0,0,14,0,0,0,0,0,0,0,0,0,0,0,0,0,0,0,0,0,0,0,10,19,22,19,16,21,61,59,55,59,50,50,79,34,125,104,162,157,237,211,237,160,223,239,233,229,220,144,250,250,397,13,13,13,13,13,13,13,13,13,13,13,13,13,13,0,0,0,13,0,13,13,13,13,13,0,0,0,0,0,0,0,0,0,0,0,0,0,0,0,0,0,0,0,0,0]} 1. d4 {[%emt 0:00:00]} Nf6 {[%emt 0:00:00]} 2. c4 {[%emt 0:00:00]} g6 {[%emt 0:00:00]} 3. Nc3 {[%emt 0:00:00]} d5 {[%emt 0:00:00]} 4. cxd5 {[%emt 0:00:00]} Nxd5 {[%emt 0:00:00]} 5. e4 {[%emt 0:00:00]} Nxc3 {[%emt 0:00:00]} 6. bxc3 {[%emt 0:00:00]} Bg7 {[%emt 0:00:00]} 7. Bc4 {[%emt 0:00:00]} c5 {[%emt 0:00:00]} 8. Ne2 {[%emt 0:00:00]} Nc6 {[%emt 0:00:00]} 9. Be3 {[%emt 0:00:00]} O-O {[%emt 0:00:00]} 10. O-O {[%emt 0:00:00]} b6 {[%emt 0:00:00]} 11. Rc1 {[%emt 0:00:00]} Bb7 {[%emt 0:00:00]} 12. Bb5 {[%emt 0:00:24]} Rc8 {[%emt 0:05:27]} 13. Qd2 {[%emt 0:02:59]} e6 {[%emt 0:00:00]} 14. Rfd1 {[%emt 0:00:20]} cxd4 {[%emt 0:00:48]} 15. cxd4 {[%emt 0:01:12]} Na5 {[%emt 0:00:00]} 16. f3 {[%emt 0:06:14]} Rxc1 {[%emt 0:00:29]} 17. Rxc1 {[%emt 0:02:03]} a6 {[%emt 0:00:00]} 18. Bd3 {[%emt 0:06:23]} Nc6 {[%emt 0:00:00][%cal Rc6d4]} 19. Bc4 {[%emt 0:16:38]} b5 {[%emt 0:03:22]} 20. Bb3 {[%emt 0:01:45]} Na5 {[%emt 0:00:00]} 21. h4 {[%emt 0:08:00]} Nxb3 {[%emt 0:14:22]} 22. axb3 {[%emt 0:03:38][%cal Oh4h5]} h5 {[%emt 0:07:45]} 23. b4 {[%emt 0:19:17]} Qd7 {[%emt 0:05:05]} 24. Bh6 {[%emt 0:03:48]} Bxh6 $1 {[%emt 0:21:42]} 25. Qxh6 {[%emt 0:00:00]} Rc8 {[%emt 0:00:00] Black is weak on the dark squares} 26. Rxc8+ {[%emt 0:08:43]} Qxc8 $14 {[%emt 0:00:00][%mdl 4096] Endgame. KQB-KQN} 27. Qc1 {[%emt 0:01:45] Against Qc2} Qd8 {[%emt 0:03:49]} 28. Qg5 $1 {[%emt 0:01:26]} Qc7 {[%emt 0:03:32]} 29. Kf2 {[%emt 0:02:12]} Qd6 {[%emt 0:05:40]} (29... a5 $1 $14) 30. Qe5 $36 {[%emt 0:02:29][%mdl 2048] White is on the roll.} Qe7 {[%emt 0:03:23]} (30... Qd8 $16) 31. g3 {[%emt 0:00:43]} f6 {[%emt 0:00:52]} (31... Qf8 $16 {might work better.} 32. Qc7 Ba8) 32. Qb8+ $18 {[%emt 0:00:25]} Kg7 {[%emt 0:00:00]} 33. Qa7 {[%emt 0:02:25]} g5 {[%emt 0:02:42]} (33... Qc7 $16 {keeps fighting.} 34. Nf4 Qc2+ 35. Kf1 (35. Ne2 Qc8 $16) 35... Qc4+ 36. Kg2 Qc8) 34. hxg5 {[%emt 0:01:19]} fxg5 {[%emt 0:00:00] [#]} 35. Qb8 {[%emt 0:00:20] Prevents Qc7} Kh7 {[%emt 0:09:02]} 36. Nc1 {[%emt 0:02:09] Nd3 is the strong threat.} h4 {[%emt 0:02:17]} (36... Qd7 $16 {was necessary.}) 37. Nd3 {[%emt 0:01:03]} Qg7 {[%emt 0:03:17]} (37... h3 $142 38. g4 Qg7) 38. Qe5 $2 {[%emt 0:00:14]} (38. Ne5 $18) 38... Qxe5 $11 {[%emt 0:00:32] The position is equal.} 39. dxe5 {[%emt 0:00:43]} hxg3+ {[%emt 0:01:08]} 40. Kxg3 {[%emt 0:00:00] KB-KN} Kg6 {[%emt 0:00:02]} 41. Kg4 {[%emt 0:40:54]} Bc8 {[%emt 0:42:16]} 42. Nc5 {[%emt 0:00:00]} Kh6 {[%emt 0:00:00]} 43. Nb3 {[%emt 0:00:00]} Kg6 {[%emt 0:00:00]} 44. Na5 {[%emt 0:00:00]} Bd7 {[%emt 0:00:00]} 45. Nb7 {[%emt 0:00:00]} Bc8 {[%emt 0:00:00]} 46. Nc5 {[%emt 0:00:00]} (46. Nd6 $5 Bd7 $8 47. Nb7 $11) 46... Kh6 {[%emt 0:00:00]} 47. Nb3 {[%emt 0:00:00]} Kg6 {[%emt 0:00:00]} 48. Nd4 {[%emt 0:00:00]} Bd7 {[%emt 0:00:00]} 49. Ne2 {[%emt 0:00:00]} Bc8 {[%emt 0:00:00]} 50. f4 {[%emt 0:00:00]} gxf4 {[%emt 0:00:00]} 51. Nxf4+ {[%emt 0:00:00]} Kh6 {[%emt 0:00:00]} 52. Nd3 {[%emt 0:00:00]} Kg6 {[%emt 0:00:00]} 53. Nc5 $1 {[%emt 0:00:00]} Kh6 {[%emt 0:00:00]} 54. Nb3 {[%emt 0:00:00]} Kg6 {[%emt 0:00:00]} 55. Nd4 {[%emt 0:00:00]} Bd7 {[%emt 0:00:00]} 56. Nb3 {[%emt 0:00:00]} Bc8 {[%emt 0:00:00]} 57. Na5 {[%emt 0:00:00]} Bd7 {[%emt 0:00:00]} 58. Kh4 {[%emt 0:00:00]} Kh6 {[%emt 0:00:00]} 59. Nb7 {[%emt 0:00:00]} Bc8 {[%emt 0:00:00]} 60. Nc5 {[%emt 0:00:00] White really could win this.   Weighted Error Value: White=0.25 (precise) /Black=0.18 (very precise) .  Missed win:     	White=1     	---        Mistake:       	---       	Black=6      Inaccurate:     	White=3     	Black=2      OK:         	White=17    	Black=27     Best:        	White=1     	Black=4      Strong:       	White=2     	Black=1} 1/2-1/2

[Event "Fagernes GM Open Autumn 2024"]
[Site "Fagernes"]
[Date "2024.10.13"]
[Round "9.8"]
[White "Carlsson, Ludvig"]
[Black "Mitusov, Semen"]
[Result "1-0"]
[ECO "D11"]
[WhiteElo "2334"]
[BlackElo "2486"]
[Annotator "TA"]
[PlyCount "67"]
[EventDate "2024.10.03"]
[EventType "swiss"]
[EventCountry "NOR"]
[SourceTitle "playchess.com"]
[Source "ChessBase"]
[SourceQuality "1"]
[TimeControl "40/6000:2400+30"]

{[%evp 14,67,55,51,76,66,76,63,70,63,77,47,81,64,80,81,65,72,81,80,265,282,258,252,267,268,710,179,477,278,453,454,460,449,539,583,574,425,427,397,421,293,455,410,702,705,641,618,4630,4630,12097,7102,29979,29980,29981,29981]} 1. Nf3 {[%emt 0:12:47]} d5 {[%emt 0:00:04]} 2. d4 {[%emt 0:00:00]} Bf5 {[%emt 0:01:39]} 3. c4 {[%emt 0:00:00]} e6 {[%emt 0:00:00]} 4. Nc3 {[%emt 0:00:00]} c6 {[%emt 0:00:43]} 5. Qb3 {[%emt 0:00:00]} Qb6 {[%emt 0:00:00]} 6. c5 {[%emt 0:00:00]} Qc7 {[%emt 0:00:00]} 7. Bf4 {[%emt 0:00:00]} Qc8 {[%emt 0:00:00]} 8. Nh4 {[%emt 0:00:45]} Be7 {[%emt 0:05:37]} 9. Nxf5 {[%emt 0:00:55]} exf5 {[%emt 0:00:00]} 10. e3 {[%emt 0:01:50]} Nf6 {[%emt 0:00:00] Weiß steht etwas besser.} 11. Bd3 {[%emt 0:01:50][%cal Od3f5]} O-O {[%emt 0:03:56]} 12. h4 {[%emt 0:05:46]} g6 {[%emt 0:01:39] [#]} 13. h5 $1 {[%emt 0:00:00] Weiß hat aktiveres Spiel. Die schwarzen Türme stehen passiv.} Nbd7 {[%emt 0:00:39] [#]} (13... Nxh5 $6 14. Rxh5 gxh5 15. O-O-O $18) (13... Na6 14. Bxa6) 14. g4 $1 {[%emt 0:04:32]} fxg4 {[%emt 0:19:09]} 15. hxg6 {[%emt 0:05:36]} fxg6 {[%emt 0:13:02] [#]} 16. e4 $1 {[%emt 0:03:09]} Nxe4 {[%emt 0:16:08] Danach kann Schwarz die Partie nicht mehr halten.} 17. Nxd5 $18 {[%emt 0:04:25]} cxd5 {[%emt 0:04:55]} 18. Qxd5+ {[%emt 0:00:05]} Kh8 {[%emt 0:00:19]} 19. Qxe4 {[%emt 0:02:42]} Qc6 $2 {[%emt 0:07:42]} (19... Qe8) 20. Bg3 $2 {[%emt 0:07:55]} (20. Rxh7+ Kxh7 21. Qxe7+ Kh8 22. Qh4+ Kg8 23. Bc4+ (23. Qxg4 Rae8+ 24. Kd2 Re4 $16) 23... Rf7 24. O-O-O (24. Bxf7+ Kxf7 25. Kf1 Nf6 $16) (24. Qxg4 Nxc5 25. Bxf7+ Kxf7 $18)) 20... Rf6 $2 {[%emt 0:05:01]} (20... Bg5 {ist eine bessere Verteidigung.} 21. d5 Qf6 22. Qxg6 Qxg6 23. Bxg6 h6) 21. O-O-O {[%emt 0:02:38]} (21. Rxh7+ $142 Kxh7 22. Qxe7+ Kh6 23. O-O-O Nxc5 24. Qe3+ (24. dxc5 Re8 $16) (24. Qxc5 Qxc5+ 25. dxc5 Rc8 $18) 24... Kh7 25. dxc5) 21... Bf8 $2 {[%emt 0:03:30]} (21... Qxe4 22. Bxe4 Re8 23. Bxb7 Nxc5) 22. Qxg4 {[%emt 0:00:05]} Re8 {[%emt 0:00:00]} 23. Kb1 {[%emt 0:02:09]} Bg7 {[%emt 0:01:53] [#]} 24. d5 $1 {[%emt 0:00:44][%mdl 512]} Qxd5 {[%emt 0:00:00]} 25. Bxg6 {[%emt 0:08:47]} Rxg6 {[%emt 0:00:36]} 26. Qxg6 {[%emt 0:00:00][%csl Gh1][%cal Rg6h7]} ({Nicht} 26. Rxd5 Rxg4 27. Rxd7 Bf8 28. Rxb7 (28. Rdxh7+ Kg8 $16) 28... Bxc5 29. Rhxh7+ (29. Rbxh7+ Kg8 $18) 29... Kg8 $18) 26... Qxd1+ {[%emt 0:00:00]} 27. Rxd1 {[%emt 0:00:00]} hxg6 {[%emt 0:00:00]} 28. Rxd7 {[%emt 0:00:00][%mdl 4096] Endspiel. KRB-KRB} Rc8 {[%emt 0:03:27]} (28... Bf8 $142 29. Bd6 (29. Rxb7 Bxc5 30. b4 Bf8 $16) (29. b4 Re7 $18) 29... Bxd6) 29. b4 {[%emt 0:00:00][%cal Bb2b4,Bb4b5,Bb5b6][%mdl 32]} b6 {[%emt 0:00:52]} 30. Rxa7 {[%emt 0:00:00]} bxc5 {[%emt 0:00:00][%cal Bb6c5,Bc5c4,Bc4c3,Bc3c2][%mdl 32]} 31. b5 {[%emt 0:00:00] Zielt auf b6 ab.} c4 {[%emt 0:00:00]} 32. b6 {[%emt 0:00:00] jetzt b7 und aus.} c3 {[%emt 0:01:02] [#]} 33. Rxg7 $1 {[%emt 0:00:00][%mdl 512]} c2+ {[%emt 0:00:00]} (33... Rc6 34. Be5) 34. Kc1 {[%emt 0:00:00] Gewichteter Fehlerwert: Weiß=0.58/Schwarz=0.89.  Verlustzug:     	---       	Schwarz=1     Fehler:       	Weiß=1     	Schwarz=4     Ungenau:       	Weiß=2     	Schwarz=1     OK:         	Weiß=8     	Schwarz=6     Bester:       	Weiß=2     	Schwarz=2     Stark:        	Weiß=1     	---} 1-0